[Event "HSK IM Invitational 2022"]
[Site "Hamburg"]
[Date "2022.05.26"]
[Round "8.4"]
[White "Kopylov, Michael"]
[Black "Kotyk, Michael"]
[Result "1-0"]
[ECO "A14"]
[WhiteElo "2378"]
[BlackElo "2170"]
[Annotator "TA"]
[PlyCount "73"]
[EventDate "2022.05.20"]
[EventType "tourn"]
[EventCountry "GER"]
[SourceTitle "playchess.com"]
[Source "ChessBase"]
[SourceQuality "1"]
[TimeControl "40/5400+30:1800+30"]

{[%evp 17,73,0,-2,-3,0,-15,11,-32,14,-10,-7,-27,-30,-18,-38,-49,-35,-33,-52,-19,7,7,7,0,0,0,0,0,0,0,4,7,5,0,0,0,0,2,6,9,9,0,19,13,21,0,0,0,0,0,22,0,2231,2093,29970,29969,2306,2230]} 1. Nf3 {[%emt 0:00:31]} Nf6 {[%emt 0:00:10]} 2. c4 {[%emt 0:02:41]} e6 {[%emt 0:00:07]} 3. g3 {[%emt 0:02:28]} d5 {[%emt 0:00:16]} 4. Bg2 {[%emt 0:00:05]} Be7 {[%emt 0:00:17]} 5. O-O {[%emt 0:02:00]} O-O {[%emt 0:00:07]} 6. b3 {[%emt 0:00:52]} c5 {[%emt 0:00:41]} 7. Bb2 {[%emt 0:00:38]} Nc6 {[%emt 0:00:58]} 8. cxd5 {[%emt 0:01:13]} Nxd5 {[%emt 0:00:56]} 9. Na3 {[%emt 0:02:55]} b6 {[%emt 0:04:49][%cal Bb7b6,Bb6b5][%mdl 32]} 10. Nc4 {[%emt 0:02:41] A14: English Opening: 1...e6 with b3 by White.} Bb7 {[%emt 0:01:23]} 11. Rc1 {[%emt 0:05:44]} Rc8 {[%emt 0:12:44]} 12. a3 {[%emt 0:03:52] [#] The position is equal.} Bf6 $146 {[%emt 0:06:11]} (12... b5 $15 13. Nce5 Nxe5 14. Nxe5 f6) ({Predecessor:} 12... b5 13. Nce5 Nxe5 14. Nxe5 f6 15. Nf3 Nb6 16. h4 Qd7 17. h5 e5 18. d3 Rc7 {1-0 (43) Pogonina,N (2472)-Lysenko,M (2285) Sochi 2022}) 13. Bxf6 {[%emt 0:13:50]} Nxf6 {[%emt 0:00:09]} 14. Qc2 {[%emt 0:00:58]} b5 {[%emt 0:05:38]} 15. Nce5 {[%emt 0:09:16]} Nxe5 {[%emt 0:00:54]} 16. Nxe5 {[%emt 0:00:05]} Bxg2 {[%emt 0:00:08]} 17. Kxg2 {[%emt 0:00:05]} Qd5+ {[%emt 0:00:05]} 18. Nf3 {[%emt 0:00:04]} Rc6 {[%emt 0:11:19]} 19. d3 {[%emt 0:03:31]} Rfc8 {[%emt 0:02:44]} 20. Qb2 {[%emt 0:00:09]} Nd7 {[%emt 0:13:56]} 21. Rc2 {[%emt 0:02:41]} e5 {[%emt 0:01:40]} 22. e4 {[%emt 0:09:11]} Qd6 {[%emt 0:01:08]} (22... Qxd3 $2 23. Rd2 Qxe4 24. Rxd7 $18) 23. Rfc1 {[%emt 0:02:17]} f6 {[%emt 0:02:22]} (23... Qxd3 $2 24. Rd2 Qxe4 25. Rxd7 $18) 24. b4 {[%emt 0:02:15]} cxb4 {[%emt 0:06:27]} (24... Qxd3 $2 25. Rd2 Qxe4 26. Rxd7 $18) 25. Rxc6 {[%emt 0:11:43]} Rxc6 {[%emt 0:00:19]} 26. Rxc6 {[%emt 0:00:12]} Qxc6 {[%emt 0:00:10]} 27. axb4 $11 {[%emt 0:00:03][%mdl 4096] Endgame KQN-KQN} a6 {[%emt 0:02:39]} 28. Qb3+ {[%emt 0:02:57]} Kf8 {[%emt 0:00:00]} 29. Nd2 {[%emt 0:00:11]} f5 {[%emt 0:10:35]} 30. Kf1 {[%emt 0:03:30]} g6 {[%emt 0:03:14]} 31. Nf3 {[%emt 0:00:32]} fxe4 {[%emt 0:00:35]} 32. dxe4 {[%emt 0:02:52]} Qxe4 {[%emt 0:04:05]} 33. Ng5 {[%emt 0:03:13][%csl Gg5,LRe4,LRh7][%cal Rb3f7] [#]} Qf5 {[%emt 0:02:24] Inhibits Qf7+.} 34. h4 {[%emt 0:00:33] Strongly threatening g4.} h6 $2 {[%emt 0:00:28][%mdl 8192]} (34... Kg7 $11) 35. g4 $1 $18 {[%emt 0:00:26]} Nc5 {[%emt 0:00:40]} 36. bxc5 {[%emt 0:00:33][%cal Bb4c5,Bc5c6][%mdl 32]} (36. gxf5 $2 {too greedy.} Nxb3 37. Nf3 e4 $19) 36... Qd7 {[%emt 0:00:02]} 37. c6 {[%emt 0:00:30] Weighted Error Value: White=0.06 (flawless) /Black=0.40} 1-0

[Event "HSK IM Invitational 2022"]
[Site "Hamburg"]
[Date "2022.05.26"]
[Round "8.5"]
[White "Garner, Isaac"]
[Black "Schulze, Lara"]
[Result "0-1"]
[ECO "D37"]
[WhiteElo "2240"]
[BlackElo "2303"]
[Annotator "TA"]
[PlyCount "102"]
[EventDate "2022.05.20"]
[EventType "tourn"]
[EventCountry "GER"]
[SourceTitle "playchess.com"]
[Source "ChessBase"]
[SourceQuality "1"]
[TimeControl "40/5400+30:1800+30"]

{[%evp 9,102,21,25,26,31,24,22,26,38,23,32,0,4,10,8,0,0,-7,16,5,6,7,14,0,0,-6,0,-5,-3,-26,-29,-18,-18,-23,-20,-40,-40,-40,-40,-40,-40,-40,-36,-46,-15,-15,-8,-38,-32,-37,-12,-28,-15,-21,16,16,14,14,15,14,18,5,4,0,0,0,39,17,87,-92,-73,-73,-73,-139,-144,-152,-156,-170,-177,-178,-202,-230,-220,-222,-223,-674,-662,-1523,-1432,-1645,-1597,-1369,-1126,-1967,-1893]} 1. Nf3 {[%emt 0:00:06]} d5 {[%emt 0:00:05]} 2. d4 {[%emt 0:00:06]} Nf6 {[%emt 0:00:31]} 3. c4 {[%emt 0:00:04]} e6 {[%emt 0:00:04]} 4. Nc3 {[%emt 0:00:03]} a6 {[%emt 0:00:16]} 5. cxd5 {[%emt 0:00:07]} exd5 {[%emt 0:00:07]} 6. Bg5 {[%emt 0:00:06] D37: Queen's Gambit Declined: 5 Bf4.} Be6 {[%emt 0:00:19]} 7. e3 {[%emt 0:00:04]} Nbd7 {[%emt 0:00:21]} 8. Bd3 {[%emt 0:00:11] The position is equal.} Bd6 {[%emt 0:00:25]} 9. O-O {[%emt 0:00:52]} c6 $1 {[%emt 0:00:26] The main line 9...c6 scores better than 9...0-0.} 10. Qc2 {[%emt 0:08:49]} Qc7 {[%emt 0:01:00]} 11. Bh4 {[%emt 0:00:21]} h6 {[%emt 0:00:16]} 12. Rac1 {[%emt 0:04:51]} O-O {[%emt 0:03:07] [#]} 13. a3 $146 {[%emt 0:07:35]} ({Predecessor:} 13. Bg3 Rfe8 14. Nd2 Bxg3 15. hxg3 Re7 16. Na4 Rae8 17. Rfe1 h5 18. b4 Ng4 19. Nf1 {½-½ (35) Ruck,R (2529)-Berkes,F (2658) Budapest 2017}) 13... Bg4 {[%emt 0:11:36]} 14. Bg3 {[%emt 0:00:40]} Bxg3 {[%emt 0:01:24]} 15. hxg3 {[%emt 0:00:17]} Qd6 {[%emt 0:01:49]} 16. Nh4 {[%emt 0:10:36]} Rfe8 {[%emt 0:12:40]} 17. Na4 {[%emt 0:10:39]} a5 {[%emt 0:08:04]} (17... Ne4 {seems wilder.} 18. b4 a5 19. Nc5 axb4 20. axb4 Ndf6) 18. Nc5 {[%emt 0:08:14]} Nxc5 {[%emt 0:02:11]} 19. Qxc5 {[%emt 0:00:06]} Qxc5 {[%emt 0:04:18]} 20. Rxc5 {[%emt 0:00:09]} Ne4 {[%emt 0:01:21][%cal Bf6e4,Be4d6,Bd6c4][%mdl 32]} 21. Rc2 {[%emt 0:00:50]} Nd6 {[%emt 0:01:28]} 22. Nf3 {[%emt 0:02:17][%cal Bh4f3,Bf3e5,Be5g6,Bg6f4][%mdl 32]} a4 {[%emt 0:09:03]} 23. Ne5 {[%emt 0:10:48]} Be6 {[%emt 0:02:45]} 24. Rcc1 {[%emt 0:01:18]} f6 {[%emt 0:08:47]} 25. Ng6 {[%emt 0:00:44]} Nc4 {[%emt 0:05:13]} 26. Rc2 {[%emt 0:00:44]} b5 {[%emt 0:05:06]} 27. Nf4 {[%emt 0:04:57]} Rab8 {[%emt 0:06:18]} 28. Bg6 {[%emt 0:02:31]} Bf7 {[%emt 0:02:38]} 29. Bf5 {[%emt 0:02:25]} Re7 {[%emt 0:01:33]} 30. Nd3 {[%emt 0:04:29]} Nd6 {[%emt 0:06:26]} 31. Bh3 {[%emt 0:07:52]} Bg6 {[%emt 0:03:32]} 32. Rxc6 {[%emt 0:00:41]} Bxd3 {[%emt 0:00:13]} 33. Rd1 {[%emt 0:00:06]} Nc4 {[%emt 0:00:52]} 34. Rxd3 {[%emt 0:00:12]} Nxb2 {[%emt 0:00:06]} 35. Rdc3 {[%emt 0:00:31] aiming for Be6+.} Kf7 {[%emt 0:00:27] Prevents Be6+.} 36. R6c5 {[%emt 0:02:29]} Ra7 {[%emt 0:01:11]} 37. Bf5 {[%emt 0:04:29]} b4 {[%emt 0:01:05]} 38. axb4 {[%emt 0:00:10] Black must now prevent b5.} Rxb4 {[%emt 0:00:30]} (38... Nc4 $1 $11) 39. Bb1 $2 {[%emt 0:03:00]} (39. Rc7+ $1 $16 Rxc7 40. Rxc7+ Ke8 41. Ra7 (41. Rxg7 a3 $14)) 39... Nc4 $36 {[%emt 0:01:20][%mdl 2048] Keeping White busy.} 40. Ba2 {[%emt 0:00:50]} Rb2 {[%emt 0:00:40] Black is more active.} 41. Bxc4 {[%emt 0:32:13]} (41. Rxd5 $142 Rxa2 42. Rxc4) 41... dxc4 {[%emt 0:30:54]} 42. R5xc4 {[%emt 0:00:55][%mdl 4096] Endgame KRR-KRR} a3 {[%emt 0:00:00][%cal Ba4a3,Ba3a2][%mdl 32]} 43. Rc7+ {[%emt 0:00:00]} Rxc7 {[%emt 0:00:00]} 44. Rxc7+ $19 {[%emt 0:00:00] KR-KR} Ke6 {[%emt 0:00:00]} 45. Ra7 {[%emt 0:00:00] Hoping for Ra6+.} a2 {[%emt 0:00:00][%mdl 1024] ...Rb1+ is the strong threat. Black has strong compensation.} 46. Kh2 {[%emt 0:00:00] [#]} Kd5 $1 {[%emt 0:00:00]} 47. Ra5+ $2 {[%emt 0:00:00] [#]} (47. Ra4) 47... Kc4 $1 {[%emt 0:00:00] Black is clearly winning.} ({Inferior is} 47... Ke4 48. d5 $17) 48. d5 {[%emt 0:00:00]} Kb3 {[%emt 0:00:00]} 49. d6 {[%emt 0:00:00]} Rd2 {[%emt 0:00:00]} 50. Rb5+ {[%emt 0:00:00]} Ka4 {[%emt 0:00:00]} 51. Rb6 {[%emt 0:00:00]} Ka5 {[%emt 0:00:00][%mdl 64] Deflection.  Weighted Error Value: White=0.46/Black=0.06 (flawless)} 0-1

[Event "HSK IM Invitational 2022"]
[Site "Hamburg"]
[Date "2022.05.27"]
[Round "9.1"]
[White "Schulze, Lara"]
[Black "Clarke, Brandon G I"]
[Result "1/2-1/2"]
[ECO "B30"]
[WhiteElo "2303"]
[BlackElo "2445"]
[Annotator "TA"]
[PlyCount "43"]
[EventDate "2022.05.20"]
[EventType "tourn"]
[EventCountry "GER"]
[SourceTitle "playchess.com"]
[Source "ChessBase"]
[SourceQuality "1"]
[TimeControl "40/5400+30:1800+30"]

{[%evp 10,43,22,27,43,43,45,41,40,26,41,38,54,49,49,29,45,39,60,75,74,-6,-6,-6,-6,-14,-6,-6,-6,-14,-14,-14,-6,-7,0,0]} 1. e4 {[%emt 0:00:03]} c5 {[%emt 0:13:27]} 2. Nc3 {[%emt 0:00:04]} Nc6 {[%emt 0:02:13]} 3. Nf3 {[%emt 0:00:32]} e5 {[%emt 0:01:24]} 4. Bc4 {[%emt 0:00:42]} Be7 {[%emt 0:00:03]} 5. d3 {[%emt 0:00:27]} d6 {[%emt 0:00:42]} 6. O-O {[%emt 0:00:42][%cal Of3g5]} Bg4 {[%emt 0:02:19] B30: Sicilian: 2...Nc6 3 Bb5, lines without ...g6.} 7. h3 {[%emt 0:02:30]} Bh5 {[%emt 0:01:16]} 8. Nd5 {[%emt 0:12:48]} Nf6 {[%emt 0:06:04] White is slightly better.} 9. c3 {[%emt 0:02:23]} O-O {[%emt 0:05:22]} 10. a3 {[%emt 0:03:09] [#]} Rb8 $146 {[%emt 0:02:56]} ({Predecessor:} 10... Kh8 11. b4 b6 12. b5 Na5 13. Nxf6 Bxf3 14. Qxf3 Bxf6 15. Bd5 Rc8 16. c4 Nb3 {½-½ (60) Libiszewski,F (2531)-Shirov,A (2696) Rabat 2015}) 11. b4 {[%emt 0:02:50]} b5 {[%emt 1:00:14]} 12. Bb3 {[%emt 0:01:33]} a5 {[%emt 0:00:00]} 13. Be3 {[%emt 0:20:51]} axb4 {[%emt 0:00:00]} 14. axb4 {[%emt 0:02:32]} (14. g4 {feels hotter.} Bg6 15. axb4 cxb4 16. Ra6) 14... cxb4 {[%emt 0:00:00]} 15. cxb4 {[%emt 0:13:45] White is much more active.} (15. g4 $16 Bg6 16. Nxb4 (16. Nxe7+ Qxe7 17. cxb4 Nxb4 $11) 16... Nxb4 17. cxb4) 15... Nxd5 $11 {[%emt 0:00:00] The position is equal.} 16. exd5 {[%emt 0:04:56]} Bxf3 {[%emt 0:02:30]} (16... Nxb4 $2 17. Qd2 $18) 17. Qxf3 {[%emt 0:00:29]} Nd4 {[%emt 0:00:00]} (17... Nxb4 $2 18. Bd2 $18) 18. Bxd4 {[%emt 0:02:00]} exd4 {[%emt 0:00:00]} 19. Ra6 {[%emt 0:04:13]} Ra8 {[%emt 0:00:00]} 20. Rc6 {[%emt 0:02:19]} Ra3 {[%emt 0:00:00]} 21. Rb1 {[%emt 0:00:58]} Re8 {[%emt 0:00:00]} 22. g3 {[%emt 0:05:32] Weighted Error Value: White=0.14 (very precise) /Black=0.07 (flawless)} 1/2-1/2

[Event "HSK IM Invitational 2022"]
[Site "Hamburg"]
[Date "2022.05.27"]
[Round "9.2"]
[White "Kotyk, Michael"]
[Black "Garner, Isaac"]
[Result "1/2-1/2"]
[ECO "D85"]
[WhiteElo "2170"]
[BlackElo "2240"]
[Annotator "TA"]
[PlyCount "46"]
[EventDate "2022.05.20"]
[EventType "tourn"]
[EventCountry "GER"]
[SourceTitle "playchess.com"]
[Source "ChessBase"]
[SourceQuality "1"]
[TimeControl "40/5400+30:1800+30"]

{[%evp 23,46,0,35,10,41,30,37,0,0,0,0,0,0,0,0,0,0,0,0,-37,0,0,0,0,0]} 1. d4 {[%emt 0:00:04]} Nf6 {[%emt 0:00:09]} 2. c4 {[%emt 0:00:14]} g6 {[%emt 0:00:24]} 3. Nc3 {[%emt 0:00:06]} d5 {[%emt 0:00:08]} 4. cxd5 {[%emt 0:00:13]} Nxd5 {[%emt 0:00:09]} 5. e4 {[%emt 0:00:04]} Nxc3 {[%emt 0:00:08]} 6. bxc3 {[%emt 0:00:03]} Bg7 {[%emt 0:00:12]} 7. Nf3 {[%emt 0:00:35]} c5 {[%emt 0:00:16]} 8. Rb1 {[%emt 0:01:01]} O-O {[%emt 0:00:33]} 9. Be2 {[%emt 0:00:26]} cxd4 {[%emt 0:00:41]} 10. cxd4 {[%emt 0:00:07]} Qa5+ {[%emt 0:00:12]} 11. Bd2 {[%emt 0:00:07]} Qxa2 {[%emt 0:00:06]} 12. O-O {[%emt 0:00:34]} Bg4 {[%emt 0:01:58]} 13. Rxb7 {[%emt 0:02:30] D85: Exchange Grünfeld: Unusual White 7th moves and lines with 7 Nf3.} Bxf3 {[%emt 0:00:12]} 14. Bxf3 {[%emt 0:00:05]} Bxd4 {[%emt 0:00:14]} 15. e5 {[%emt 0:00:15] White is slightly better.} (15. Bb4 $5 {[%cal Rd1d4]} Rd8 16. Qc1 $11 (16. Bxe7 $2 Bxf2+ 17. Rxf2 Rxd1+ 18. Bxd1 Qa1 $19) (16. Rxe7 $2 Nc6 $19)) 15... Na6 {[%emt 0:00:33][%cal Bb8a6,Ba6c5,Bc5d3,Bd3e1][%mdl 32]} 16. Rxe7 {[%emt 0:00:22]} Rad8 {[%emt 0:00:09]} 17. e6 {[%emt 0:00:22]} fxe6 {[%emt 0:01:10] [#] And now ...Bc5 would win.} 18. Qe1 {[%emt 0:00:28] [#]} Nc5 $146 {[%emt 0:00:14]} ({Predecessor:} 18... Bf6 19. Rxa7 Rxd2 20. Rxa6 Qxa6 21. Qxd2 Qb6 22. g3 Bd4 23. Qe2 Rf6 24. Kg2 Qb2 25. Qxb2 Bxb2 {½-½ (44) Grischuk,A (2776)-Vachier Lagrave,M (2760) Bucharest 2021}) 19. Bc3 {[%emt 0:00:28] Strongly threatening Bxd4.} Nd3 {[%emt 0:00:11]} 20. Bxd4 $1 {[%emt 0:00:16] The board is on fire. A strong pair of Bishops.} Nxe1 {[%emt 0:00:09]} 21. Rg7+ {[%emt 0:00:07]} Kh8 {[%emt 0:00:06]} 22. Rd7+ {[%emt 0:00:05]} Kg8 {[%emt 0:00:04]} (22... e5 $2 23. Bxe5+ Rf6 24. Bxf6+ Kg8 25. Rxd8+ $18) 23. Rg7+ {[%emt 0:00:03]} Kh8 {[%emt 1:34:02] Weighted Error Value: White=0.06 (flawless) /Black=0.03 (flawless)} 1/2-1/2

[Event "HSK IM Invitational 2022"]
[Site "Hamburg"]
[Date "2022.05.27"]
[Round "9.3"]
[White "Kopylov, Daniel"]
[Black "Kopylov, Michael"]
[Result "1-0"]
[ECO "B01"]
[WhiteElo "2292"]
[BlackElo "2378"]
[Annotator "TA"]
[PlyCount "67"]
[EventDate "2022.05.20"]
[EventType "tourn"]
[EventCountry "GER"]
[SourceTitle "playchess.com"]
[Source "ChessBase"]
[SourceQuality "1"]
[TimeControl "40/5400+30:1800+30"]

{[%evp 15,67,12,16,0,-7,-8,0,0,0,0,-2,-2,2,0,0,0,2,0,0,0,0,0,4,1,2,-48,-52,-66,13,0,147,140,137,155,354,333,299,141,306,95,94,95,128,130,489,501,564,549,556,570,560,546,571,555]} 1. e4 {[%emt 0:00:03]} d5 {[%emt 0:00:47]} 2. exd5 {[%emt 0:00:20]} Qxd5 {[%emt 0:00:13]} 3. Nc3 {[%emt 0:00:08]} Qa5 {[%emt 0:04:18]} 4. d4 {[%emt 0:02:34]} c6 {[%emt 0:01:32]} 5. Bc4 {[%emt 0:01:57]} Nf6 {[%emt 0:02:24]} 6. Nf3 {[%emt 0:01:58]} Bf5 {[%emt 0:01:50]} 7. O-O {[%emt 0:06:14]} e6 {[%emt 0:02:34]} 8. Bd2 {[%emt 0:03:41]} Qc7 {[%emt 0:01:34] 8...Qc7 scores better than 8...Nbd7.} 9. Qe2 {[%emt 0:06:09] B01: Scandinavian Defence.} Be7 {[%emt 0:04:29]} 10. Bg5 {[%emt 0:07:01]} O-O {[%emt 0:07:05] [#]} 11. h3 $146 {[%emt 0:05:20] The position is equal.} ({Predecessor:} 11. Rfe1 Nbd7 12. h3 Nb6 13. Bb3 Rad8 14. Rad1 c5 15. Nb5 Qb8 16. dxc5 Bxc5 17. Nfd4 {0-1 (26) Echevarria del Toro,V (2286)-Gutierrez Espinosa,K (2060) Havana 2018}) 11... h6 {[%emt 0:04:56]} 12. Bh4 {[%emt 0:00:58]} Nbd7 {[%emt 0:02:50]} 13. Bg3 {[%emt 0:03:07]} Qb6 {[%emt 0:09:26]} 14. Bb3 {[%emt 0:03:01]} Rfe8 {[%emt 0:06:22]} 15. Rad1 {[%emt 0:03:28]} c5 {[%emt 0:05:08]} 16. Na4 {[%emt 0:10:52]} Qa5 {[%emt 0:03:00][%cal Oc5c4] Threatens to win with ...c4!} 17. Nxc5 {[%emt 0:03:46]} Nxc5 {[%emt 0:01:10]} 18. dxc5 {[%emt 0:00:07]} Qxc5 {[%emt 0:05:46]} 19. Nd4 {[%emt 0:05:29]} Bg6 {[%emt 0:01:01]} 20. Qb5 {[%emt 0:08:53]} (20. Be5 $11) 20... Ne4 $15 {[%emt 0:07:15]} 21. Bf4 {[%emt 0:05:23]} a6 {[%emt 0:08:59]} (21... Bf6 $15 22. Qxc5 Nxc5) 22. Qxb7 $11 {[%emt 0:05:26]} e5 {[%emt 0:07:44] [#]} (22... Bf6 $1 $11 {keeps the balance.} 23. Be3 Qc8 24. Qxc8 Rexc8) 23. Nc6 $1 $16 {[%emt 0:00:55] And now Be3 would win. White is more active.} exf4 {[%emt 0:07:27]} 24. Rd5 {[%emt 0:00:39]} Rac8 $2 {[%emt 0:00:39]} (24... Bf6 $16 {is a better defense.} 25. Rxc5 Nxc5) 25. Rxc5 $18 {[%emt 0:01:44]} Bxc5 {[%emt 0:00:08]} 26. c3 {[%emt 0:12:11]} (26. Qxa6 $18 {[%cal Oc6e5] Ne5! is the strong threat.} Nd2 27. Rc1) 26... Ng3 $2 {[%emt 0:03:43]} (26... Nxf2 $16 27. Nd4 (27. Rxf2 $2 Rxc6 28. Qxc6 Re1+ 29. Kh2 Bxf2 $19) (27. Qxa6 Bd3 $11) 27... Nd3) 27. Ne7+ $2 {[%emt 0:00:53]} Bxe7 $16 {[%emt 0:01:00]} 28. fxg3 {[%emt 0:00:15] Chess con chili.} Bc5+ {[%emt 0:00:38]} 29. Kh1 {[%emt 0:01:26]} Rb8 $2 {[%emt 0:00:30][%mdl 8192]} (29... fxg3 $16 {is tougher.} 30. Qxa6 (30. Bxf7+ Bxf7 31. Qxf7+ Kh8 $14) 30... Kh8) 30. Qc6 $18 {[%emt 0:00:51] White is clearly winning.} Rec8 {[%emt 0:00:25]} 31. Qxg6 {[%emt 0:00:33]} Rxb3 {[%emt 0:00:11]} 32. Qxa6 {[%emt 0:00:10]} Rbb8 {[%emt 0:00:26]} 33. gxf4 {[%emt 0:00:32]} Re8 {[%emt 0:00:42]} 34. b4 {[%emt 0:00:14] Weighted Error Value: White=0.18 (very precise) /Black=0.67} 1-0

[Event "HSK IM Invitational 2022"]
[Site "Hamburg"]
[Date "2022.05.27"]
[Round "9.4"]
[White "Miezis, Normunds"]
[Black "Bracker, Arne"]
[Result "1-0"]
[ECO "A36"]
[WhiteElo "2452"]
[BlackElo "2276"]
[Annotator "TA"]
[PlyCount "123"]
[EventDate "2022.05.20"]
[EventType "tourn"]
[EventCountry "GER"]
[SourceTitle "playchess.com"]
[Source "ChessBase"]
[SourceQuality "1"]
[TimeControl "40/5400+30:1800+30"]

{[%evp 9,123,0,6,0,0,0,23,18,34,-2,9,0,53,-16,-25,-30,0,-11,0,-74,-43,-22,-35,-43,12,-5,-4,-2,-10,-14,20,15,18,13,20,22,42,16,75,60,73,66,90,103,86,92,93,96,102,91,198,196,211,225,221,232,231,178,169,0,196,143,205,97,97,97,97,97,97,102,107,123,179,66,75,14,39,0,68,0,0,0,0,0,47,67,83,141,152,99,4618,3464,29973,29974,29973,29971,29975,29975,29976,29977,4610,4610,29980,29981,29982,29981,29981,29982,29982,29983,29983,29984,29984,29985,29987,29987]} 1. c4 {[%emt 0:00:09]} c5 {[%emt 0:00:06]} 2. Nc3 {[%emt 0:00:26]} Nc6 {[%emt 0:00:10]} 3. g3 {[%emt 0:00:20]} g6 {[%emt 0:00:11]} 4. Bg2 {[%emt 0:00:10]} Bg7 {[%emt 0:00:09]} 5. d3 {[%emt 0:01:47]} e6 {[%emt 0:01:00]} 6. a3 {[%emt 0:01:23] A36: Symmetrical English vs ...g6: 4 Bg2 Bg7.} Nge7 {[%emt 0:00:51]} 7. h4 {[%emt 0:00:49] [#]} O-O $146 {[%emt 0:04:50]} ({Predecessor:} 7... h6 8. Bd2 d6 9. Rb1 b6 10. b4 Bb7 11. Nh3 Qd7 12. Nf4 O-O 13. O-O Nd4 {1-0 (68) Miezis,N (2485)-Nilsen,T (2146) Fagernes 2020}) 8. h5 {[%emt 0:01:03] White has an edge.} d5 {[%emt 0:02:13]} 9. cxd5 {[%emt 0:01:34]} exd5 {[%emt 0:00:37]} 10. hxg6 {[%emt 0:03:10]} hxg6 {[%emt 0:02:56]} ({Black should try} 10... fxg6 $11 11. Bg5 Qd6) 11. Nh3 {[%emt 0:09:44]} (11. Bh6 $14) 11... Bg4 $11 {[%emt 0:07:39]} (11... d4 12. Ne4 $16) 12. Nf4 {[%emt 0:03:14]} Re8 {[%emt 0:07:20]} 13. Kf1 {[%emt 0:08:18]} Nd4 {[%emt 0:20:48]} 14. Bh3 {[%emt 0:01:37]} (14. Rb1 $11) 14... Qd7 {[%emt 0:03:48]} 15. Bxg4 {[%emt 0:06:54]} Qxg4 {[%emt 0:00:04]} 16. Kg2 {[%emt 0:00:32]} Nef5 {[%emt 0:06:09]} (16... Rad8 $15) 17. e4 {[%emt 0:05:16] The board is on fire.} (17. Bd2 {is interesting.} g5 18. e3 Qxd1 19. Raxd1 gxf4 20. exd4 f3+ 21. Kxf3 Nxd4+ 22. Kg2) 17... Qxd1 {[%emt 0:01:24]} 18. Rxd1 {[%emt 0:00:34]} dxe4 {[%emt 0:00:49]} 19. dxe4 {[%emt 0:00:29]} Nb3 {[%emt 0:03:44]} 20. Rb1 {[%emt 0:05:18]} Nfd4 {[%emt 0:00:42]} 21. Be3 {[%emt 0:04:45]} Rac8 {[%emt 0:10:16]} 22. Nfd5 {[%emt 0:00:52]} Kf8 {[%emt 0:05:06]} 23. Bf4 {[%emt 0:04:18] Threatens to win with Bd6+.} Rc6 {[%emt 0:00:12] Inhibits Bd6+.} (23... f6 $11 {keeps the balance.}) 24. Rh1 $1 $16 {[%emt 0:00:36]} Ne6 {[%emt 0:04:20]} 25. Bh6 {[%emt 0:06:40]} Bxh6 {[%emt 0:00:31]} 26. Rxh6 {[%emt 0:00:16]} Kg7 {[%emt 0:00:05] Inhibits Rh8.} 27. Rbh1 {[%emt 0:00:41] White wants to mate with Rh7+.} Nf8 {[%emt 0:00:02] Against Rh7+} 28. f4 $36 {[%emt 0:07:31][%mdl 2048] Hoping for e5. Keeping Black busy.} f6 {[%emt 0:00:02] Prevents e5.} 29. Rh8 {[%emt 0:00:21][%cal Oh1h7] aiming for R1h7+!} Rcc8 {[%emt 0:04:26]} (29... Kf7 $16) 30. f5 $1 $18 {[%emt 0:05:37]} gxf5 {[%emt 0:02:52]} 31. exf5 {[%emt 0:00:52]} Nd4 {[%emt 0:05:00]} 32. g4 {[%emt 0:01:38]} Ne2 {[%emt 0:02:18]} 33. Nb5 {[%emt 0:02:49]} Nd4 {[%emt 0:02:42]} 34. Nbc3 {[%emt 0:08:56]} (34. Nxa7 Rcd8 35. Nc7 Re4 36. R1h7+ Nxh7 $11) 34... Ne2 $1 {[%emt 0:00:05] [#] Inhibits Nf4.} 35. R1h6 {[%emt 0:02:32]} (35. Rxf8 $1 $18 {[%mdl 512]} Kxf8 36. Nxf6 Nxc3 37. Nxe8 (37. bxc3 Red8 $16)) 35... Rc6 {[%emt 0:02:56] [#]} (35... Nxc3 $16 36. bxc3 Rc6) 36. R6h7+ {[%emt 0:05:31]} Nxh7 $16 {[%emt 0:00:06]} 37. Rxe8 {[%emt 0:00:09]} Nxc3 {[%emt 0:00:32]} 38. Re7+ {[%emt 0:00:34]} Kh6 {[%emt 0:00:14]} 39. bxc3 {[%emt 0:00:17][%cal Bb2c3,Bc3c4][%mdl 4128] Endgame KRN-KRN} Rd6 {[%emt 0:00:14]} 40. c4 {[%emt 0:00:24] White is more active.} Ra6 {[%emt 0:02:04]} (40... b5 $16 {was called for.}) 41. Rf7 {[%emt 0:31:42]} (41. Rxb7 $18 {Rc7 is the strong threat.} Rxa3 42. Rc7) 41... Rxa3 $14 {[%emt 0:06:00]} 42. Ne7 {[%emt 0:00:00]} ({Better is} 42. Rxb7 $16 {And now Rc7 would win.} a5 43. Rc7) 42... b6 {[%emt 0:01:08]} ({Don't do} 42... Ra2+ 43. Kg3 Ra3+ 44. Kf2 $14) 43. Kf2 {[%emt 0:00:00]} Rc3 {[%emt 0:04:18]} (43... Rh3 $1 $11) 44. Nd5 {[%emt 0:00:00]} ({White should play} 44. Ng8+ $14 Kg5 45. Rxh7 Kxg4 46. Ne7 (46. Rxa7 Kxf5 47. Ne7+ Ke5 $14) 46... Rc2+ 47. Ke3 Rc3+ 48. Ke4 Rxc4+ 49. Kd5) 44... Rxc4 $11 {[%emt 0:04:00]} 45. Kg3 {[%emt 0:00:00]} Rc1 {[%emt 0:01:15]} 46. Nxf6 {[%emt 0:00:00]} Nxf6 {[%emt 0:04:46]} (46... Rc3+ $1 $11 47. Kf4 (47. Kh4 Rh3+ 48. Kxh3 Ng5+ 49. Kh4 Nxf7 $11) 47... Rf3+ 48. Ke5 Re3+ 49. Kf4 Rf3+ 50. Ke5 Re3+ 51. Kf4 Rf3+) 47. Rxf6+ {[%emt 0:00:00] KR-KR} Kg7 {[%emt 0:00:03]} 48. Rc6 {[%emt 0:00:00]} b5 {[%emt 0:02:36] [#]} 49. g5 {[%emt 0:00:00]} (49. Kf4 $142 $1) 49... Rf1 $2 {[%emt 0:05:03][%mdl 8192] A mistake that costs the game.} (49... b4 $16) 50. Rxc5 $18 {[%emt 0:00:08] Intending Rc7+ and mate.} b4 {[%emt 0:00:22]} 51. Rc7+ {[%emt 0:00:26]} Kf8 {[%emt 0:00:13] [#]} 52. Kg4 $1 {[%emt 0:00:48]} a5 {[%emt 0:00:54]} 53. Rb7 {[%emt 0:00:20]} Rf2 {[%emt 0:04:31]} 54. f6 {[%emt 0:00:33]} Ke8 {[%emt 0:01:58]} 55. Kh5 {[%emt 0:00:21] Kg6 would kill now.} Rf4 {[%emt 0:00:28]} 56. Kg6 {[%emt 0:00:28] White mates.} a4 {[%emt 0:00:09]} 57. f7+ {[%emt 0:02:00]} Kf8 {[%emt 0:00:36]} 58. Rb8+ {[%emt 0:00:40]} Ke7 {[%emt 0:00:02]} 59. Re8+ {[%emt 0:00:14]} Kd7 {[%emt 0:00:00]} 60. f8=Q {[%emt 0:00:49]} Rxf8 {[%emt 0:00:02]} 61. Rxf8 {[%emt 0:00:16]} Kc7 {[%emt 0:02:08]} 62. Rf4 {[%emt 0:00:19] Weighted Error Value: White=0.21 (precise) /Black=0.37} 1-0